Cogmind - Beta 14 @@@ ROGUE MODE // 2025.01.11 @ 13:34:48 Player: GDW Result: Destroyed by B-75 Beast with Heavy Plasma Cannon Performance ------------- Evolutions (4) 2000 Regions Visited (7) 1400 Robots Destroyed (54) 270 Value Destroyed (1483) 1483 Prototype IDs (13) 260 Alien Tech Used (0) 0 Bonus (178) 178 TOTAL SCORE: 5591 Bonus ------- Follower Combat Kills 186 Friendly Fire -8 Cogmind --------- Core Integrity 0/850 Matter 255/300 Energy 100/100 System Corruption 0% Temperature Cool (12) Movement Core (50) Location -6/Extension Parts ------- > --- POWER (1) -------- (None) > --- PROPULSION (4) --- (None) > --- UTILITY (8) ------ Machine Analyzer Enhanced Optical Array Hacking Suite > --- WEAPON (2) ------- (None) > --- INVENTORY (5) ---- Advanced Terrain Scan Processor Improved Light Armor Plating Recalibrator Datajack Power Sword Peak State ------------ > --- POWER ------------ Light Nuclear Core > --- PROPULSION ------- Gravmag System Gravmag System Cooled Airjet Improved Gravmag System > --- UTILITY ---------- Large Storage Unit Trap Scanner Visual Processing Unit Improved Signal Interpreter Hacking Suite System Shield Recalibrator > --- WEAPON ----------- Improved EM Shotgun Improved Medium Laser > --- INVENTORY -------- Light Nuclear Core Gravmag System Gravmag System Gravmag System Gravmag System Improved Airjet Improved Cesium-ion Thruster Improved Heat Sink Advanced Terrain Scan Processor Improved Utility Shielding Improved Light Armor Plating Improved Medium Laser Mini Grenade Launcher Improved Datajack Improved Datajack [Rating: 51] Favorites ----------- Power Ion Engine Engine Ion Engine Power Core Light Nuclear Core Propulsion Light Treads Treads Light Treads Hover Unit Airjet Flight Unit Improved Cesium-ion Thruster Utility Large Storage Unit Device Sensor Array Storage Large Storage Unit Processor Visual Processing Unit Hackware Hacking Suite Protection Light Armor Plating Weapon Improved Medium Laser Energy Gun Improved Medium Laser Launcher Mini Grenade Launcher Slashing Weapon Power Sword Special Melee Weapon Improved Datajack Build | -11 -10 -10 -9 -8 -7 -6 -6 ------- Run | Yrd Mat Min Mat Mat Fac Fac Ext Slots Evolved 8 | . . . 2 2 2 2 . Power . | . . . . . . . . Propulsion 2 | . . . . . 2 . . Utility 6 | . . . 2 2 . 2 . Weapon . | . . . . . . . . Parts Attached 76 | 5 10 1 16 5 23 2 14 Power 9 | 1 . 1 1 . 3 . 3 Engine 4 | 1 . 1 1 . . . 1 Core 5 | . . . . . 3 . 2 Reactor . | . . . . . . . . Propulsion 17 | 2 1 . 2 1 8 1 2 Treads 6 | 2 1 . 2 1 . . . Leg . | . . . . . . . . Wheel . | . . . . . . . . Hover 10 | . . . . . 8 1 1 Flight 1 | . . . . . . . 1 Utility 26 | . 7 . 4 2 8 1 4 Device 12 | . 3 . 2 1 4 1 1 Storage 4 | . 4 . . . . . . Processor 5 | . . . 2 1 . . 2 Hackware 2 | . . . . . 2 . . Protection 3 | . . . . . 2 . 1 Artifact . | . . . . . . . . Weapon 24 | 2 2 . 9 2 4 . 5 Energy Gun 16 | 2 2 . 7 1 3 . 1 Energy Cannon . | . . . . . . . . Ballistic Gun . | . . . . . . . . Ballistic Cannon . | . . . . . . . . Launcher 3 | . . . 1 1 . . 1 Special Weapon . | . . . . . . . . Impact Weapon . | . . . . . . . . Slashing Weapon 2 | . . . . . . . 2 Piercing Weapon . | . . . . . . . . Special Melee Weapon 3 | . . . 1 . 1 . 1 Unidentified Prototypes 3 | . . . . . 1 . 2 Parts Lost 27 | . . . 6 . 2 . 19 Power 6 | . . . 1 . 1 . 4 Propulsion 8 | . . . 2 . . . 6 Utility 7 | . . . 2 . . . 5 Weapon 6 | . . . 1 . 1 . 4 Highest Loss Streak 13 | . . . 6 . 1 . 13 To Critical Strikes 1 | . . . 1 . . . . Average Slot Usage (%) 92 | . 98 100 97 89 96 90 59 Engine 8 | . 14 14 10 9 . . . Core 1 | . . . . . 6 6 2 Treads 16 | . 28 28 21 18 . . . Hover 6 | . . . . . 29 26 13 Device 13 | . 7 14 17 18 10 10 6 Storage 10 | . 19 14 11 9 7 6 3 Processor 11 | . . . 13 17 15 13 12 Hackware 2 | . . . . . 6 13 10 Energy Gun 16 | . 28 28 20 9 10 13 6 Launcher 1 | . . . . 3 2 . . Special Melee Weapon 1 | . . . . 5 1 . . Peak Build Rating 51 | 5 9 14 28 36 46 51 51 Average Rating 25 | 3 7 11 21 34 38 48 32 On Entrance 23 | . 5 9 14 28 36 46 51 Naked Turns . | . . . . . . . . Heaviest Build 40 | 9 31 35 40 40 36 34 34 Greatest Support 41 | 40 40 40 40 40 41 36 36 Greatest Overweight (x) 7 | . . . 1 . . . 7 Average Overweight (x) . | . . . . . . . . Largest Inventory Capacity 15 | 5 15 15 15 15 15 15 15 Average Capacity 14 | 5 12 15 15 15 15 15 10 Most Carried 15 | 5 14 15 15 15 15 15 15 Average Carried 12 | 3 9 14 13 12 13 14 9 Final Capacity 15 | 5 15 15 15 15 15 15 5 Final Carried 15 | 5 14 15 11 15 15 15 5 Class Distribution -------------------- 74% | Mutant 9% | Hacker-Mutant 8% | Scavenger-Mutant 5% | Scavenger-Skirmisher Dominant Class ---------------- Mutant | -10/Materials Mutant | -10/Mines Mutant | -9/Materials Mutant | -8/Materials Mutant | -7/Factory Scavenger-Mutant | -6/Factory Scavenger-Mutant | -6/Extension Resources | -11 -10 -10 -9 -8 -7 -6 -6 ----------- Run | Yrd Mat Min Mat Mat Fac Fac Ext Matter Collected 969 | 223 127 10 161 143 215 60 30 Remotely . | . . . . . . . . Salvage Created 1861 | . 148 56 515 723 271 75 73 Parts 104 | . 9 2 35 42 9 4 3 Haulers Intercepted 3 | . 1 . 1 1 . . . Recyclers Shooed 3 | . . . 3 . . . . Parts Field Recycled . | . . . . . . . . Retrieved Matter . | . . . . . . . . Parts Self-Destructed . | . . . . . . . . Prevented . | . . . . . . . . Kills | -11 -10 -10 -9 -8 -7 -6 -6 ------- Run | Yrd Mat Min Mat Mat Fac Fac Ext Combat Hostiles Destroyed 34 | . 2 1 10 14 5 1 1 Guns 16 | . 2 1 6 3 3 1 . AOE 16 | . . . 4 10 2 . . Classes Destroyed 10 | . 3 . 4 3 . . . Worker 4 | . . . . 4 . . . Hauler 3 | . 1 . 1 1 . . . Recycler 2 | . . . 2 . . . . Mechanic 1 | . . . . 1 . . . Operator 4 | . . . 1 . 2 . 1 Watcher 6 | . 1 . 3 2 . . . Swarmer 9 | . . . 6 3 . . . Grunt 19 | . 2 1 3 8 5 . . Sentry 5 | . . . 1 2 . 1 1 Hunter 1 | . . . . 1 . . . Best Kill Streak 13 | . 3 1 8 13 3 1 1 Combat Bots Only 9 | . 2 1 7 9 3 1 1 Max Kills in Single Turn 4 | . 1 1 3 4 1 1 1 Gunslinging . | . . . . . . . . Exploded 3 | . . . 3 3 1 . . Melee . | . . . . . . . . Uniques/NPCs Destroyed . | . . . . . . . . Combat | -11 -10 -10 -9 -8 -7 -6 -6 -------- Run | Yrd Mat Min Mat Mat Fac Fac Ext Hostile Shots Fired 507 | . 10 2 55 55 35 36 314 Missed 238 | . 4 . 10 17 23 23 161 Damage Taken 3250 | . 87 29 509 568 259 90 1708 Core 1131 | . 16 . 82 120 45 6 862 Absorbed by Shields 22 | . . . . . 6 . 16 Core Remaining (%) 88 | 100 . 93 79 78 93 . . Volleys Fired 115 | . 17 2 33 32 16 4 11 Largest 2 | . 2 2 2 2 2 2 2 Hottest 130 | . 115 115 130 80 112 101 112 Shots Fired 183 | . 34 4 61 34 26 8 16 Gun 170 | . 34 4 57 28 24 8 15 Cannon . | . . . . . . . . Launcher 13 | . . . 4 6 2 . 1 Special . | . . . . . . . . Kinetic . | . . . . . . . . Thermal 119 | . 34 4 40 5 17 4 15 Explosive 13 | . . . 4 6 2 . 1 Electromagnetic 51 | . . . 17 23 7 4 . Robot Hit Streak 12 | . 6 1 10 12 11 5 10 Robot Miss Streak 4 | . 2 3 4 4 4 1 1 Penetration Max . | . . . . . . . . Secondary Targets . | . . . . . . . . Shots Hit Robots 123 | . 21 1 36 26 18 5 16 Core Hits 88 | . 9 1 25 33 11 5 4 Critical Kills . | . . . . . . . . Critical Parts Destroyed . | . . . . . . . . Critical Strikes 8 | . 2 . 3 . 2 . 1 Burn 8 | . 2 . 3 . 2 . 1 Melee Attacks 5 | . . . . 2 1 . 2 Impact . | . . . . . . . . Slashing 1 | . . . . . . . 1 Piercing . | . . . . . . . . Sneak Attacks 1 | . . . . . . . 1 Combat Hostiles . | . . . . . . . . Follow-up Attacks . | . . . . . . . . Damage Inflicted 3354 | . 284 15 871 1263 502 93 326 Guns 1860 | . 284 15 563 402 286 93 217 Cannons . | . . . . . . . . Explosions 1409 | . . . 308 861 216 . 24 Melee 82 | . . . . . . . 82 Ramming 3 | . . . . . . . 3 Kinetic . | . . . . . . . . Thermal 1358 | . 284 15 443 193 189 17 217 Explosive 1168 | . . . 242 686 216 . 24 Electromagnetic 743 | . . . 186 384 97 76 . Impact . | . . . . . . . . Slashing 82 | . . . . . . . 82 Piercing . | . . . . . . . . Highest Corruption 5 | . . . . . 5 . . Average Corruption 2 | . . . . . 2 . . Corruption Purged . | . . . . . . . . Corruption Blocked . | . . . . . . . . Overload Shots . | . . . . . . . . Overflow Damage 69 | . . . . 17 . . 52 Projectiles . | . . . . . . . . Explosions 17 | . . . . 17 . . . Melee 52 | . . . . . . . 52 Knockbacks . | . . . . . . . . Impact . | . . . . . . . . Kinetic . | . . . . . . . . Secondary . | . . . . . . . . Self-Inflicted Damage 103 | . . . 63 39 . . 1 Shots 4 | . . . 3 1 . . . Rammed 1 | . . . . . . . 1 Targets Rammed 1 | . . . . . . . 1 Kicked . | . . . . . . . . Crushed . | . . . . . . . . Highest Temperature 221 | . 221 126 216 27 217 90 115 Average Temperature 63 | . 81 64 75 10 60 52 48 Received Heat Transfer 758 | . 66 18 90 216 61 18 289 Siege Activations . | . . . . . . . . Robots Corrupted 2 | . . . . 2 . . . Combat Hostiles 1 | . . . . 1 . . . Parts Fried 2 | . . . . 2 . . . Impact Corruptions . | . . . . . . . . Robots Melted 1 | . . . . . . . 1 Combat Hostiles 1 | . . . . . . . 1 Parts Melted 7 | . 1 . 1 . 2 . 3 Heat Transferred 3593 | . 962 37 1260 187 555 37 555 Parts Sabotaged . | . . . . . . . . Parts Stolen . | . . . . . . . . Parts Stripped . | . . . . . . . . Power Chain Reactions 4 | . . . 2 2 . . . Alert | -11 -10 -10 -9 -8 -7 -6 -6 ------- Run | Yrd Mat Min Mat Mat Fac Fac Ext Peak Influence 366 | . 57 57 234 357 348 231 366 Initial 170 | . . 22 . 98 137 170 112 Average 93 | . 25 21 37 133 168 179 231 Maximum Alert Level 1 | . . . 1 1 1 1 1 Low Security (%) 81 | 100 100 100 90 76 72 81 20 Level 1 18 | . . . 9 23 27 18 79 Level 2 . | . . . . . . . . Level 3 . | . . . . . . . . Level 4 . | . . . . . . . . Level 5 . | . . . . . . . . High Security . | . . . . . . . . Max Security . | . . . . . . . . Squads Dispatched 13 | . 1 . 2 3 4 1 2 Investigation 6 | . 1 . 1 . 2 1 1 Extermination . | . . . . . . . . Reinforcement 7 | . . . 1 3 2 . 1 Assault . | . . . . . . . . Garrison . | . . . . . . . . Intercept . | . . . . . . . . Searches Triggered . | . . . . . . . . Construction Impeded 1 | . . . . 1 . . . Haulers Reinforced . | . . . . . . . . Active Scanning Responses . | . . . . . . . . Cargo Convoy Interrupts . | . . . . . . . . Stealth | -11 -10 -10 -9 -8 -7 -6 -6 --------- Run | Yrd Mat Min Mat Mat Fac Fac Ext Distress Signals 4 | . . . 2 2 . . . Communications Jammed . | . . . . . . . . Distress Signals . | . . . . . . . . Times Spotted 94 | . 4 2 16 28 22 1 21 Peak Tracking Total 11 | . 4 2 6 11 5 2 8 Tactical Retreats 12 | . . . . 1 5 . 6 Traps | -11 -10 -10 -9 -8 -7 -6 -6 ------- Run | Yrd Mat Min Mat Mat Fac Fac Ext Traps Triggered 11 | . 2 . 1 . 6 1 1 Indirectly . | . . . . . . . . Trap Hack Attempts . | . . . . . . . . Triggered . | . . . . . . . . Disarmed 1 | . 1 . . . . . . Reprogrammed . | . . . . . . . . Reused . | . . . . . . . . Traps Extracted . | . . . . . . . . Installed . | . . . . . . . . Triggered . | . . . . . . . . Machines | -11 -10 -10 -9 -8 -7 -6 -6 ---------- Run | Yrd Mat Min Mat Mat Fac Fac Ext Machines Disabled 3 | . . . 1 1 . . 1 Max in Single Turn 1 | . . . 1 1 . . 1 Machines Repaired . | . . . . . . . . Machines Dismantled . | . . . . . . . . Machines Sabotaged . | . . . . . . . . Overloaded Fab Kills . | . . . . . . . . Hacking | -11 -10 -10 -9 -8 -7 -6 -6 --------- Run | Yrd Mat Min Mat Mat Fac Fac Ext Machines Accessed 31 | . 3 2 6 4 10 2 4 Terminals 24 | . 3 1 4 4 7 1 4 Fabricators 2 | . . . . . 1 1 . Repair Stations . | . . . . . . . . Recycling Units 1 | . . . . . 1 . . Scanalyzers 3 | . . . 2 . 1 . . Garrison Access . | . . . . . . . . Total Hacks 96 | . 12 5 31 5 27 2 14 Successful 63 | . 8 4 25 3 14 2 7 Failed 32 | . 4 1 6 2 12 . 7 Catastrophic 5 | . . . 2 . 3 . . Database Lockouts 1 | . . . . . 1 . . Manual . | . . . . . . . . Terminals 64 | . 12 4 9 5 19 1 14 Fabricators 3 | . . . . . 2 1 . Repair Stations . | . . . . . . . . Recycling Units 2 | . . . . . 2 . . Scanalyzers 26 | . . . 22 . 4 . . Garrison Access . | . . . . . . . . Terminal Hacks 37 | . 8 4 5 3 9 1 7 Record 11 | . . 3 1 1 4 . 2 Prototype ID Bank 3 | . 1 . 1 . 1 . . Open Door 3 | . . 1 . . . 1 1 Open DSF 1 | . . . . . 1 . . Level Access Points 2 | . . . 1 . 1 . . Branch Access Points 1 | . 1 . . . . . . Alert Level 5 | . 2 . 1 1 . . 1 Unreport Threat 1 | . . . . . 1 . . Locate Traps 1 | . 1 . . . . . . Disarm Traps 1 | . 1 . . . . . . Dispatch Records 1 | . 1 . . . . . . Security Status 1 | . . . . 1 . . . Transport Status 1 | . 1 . . . . . . Recall Investigation 2 | . . . . . 1 . 1 Registered Prototypes 1 | . . . 1 . . . . Zone Layout 2 | . . . . . . . 2 Fabricator Hacks 3 | . . . . . 2 1 . Network Status 1 | . . . . . . 1 . Load Schematic 1 | . . . . . 1 . . Build 1 | . . . . . 1 . . Repair Station Hacks . | . . . . . . . . Recycling Unit Hacks 2 | . . . . . 2 . . Report Inventory 1 | . . . . . 1 . . Retrieve Components 1 | . . . . . 1 . . Scanalyzer 21 | . . . 20 . 1 . . Insert Component 12 | . . . 11 . 1 . . Analyze 9 | . . . 9 . . . . Garrison Access Hacks . | . . . . . . . . Unauthorized Hacks . | . . . . . . . . Terminals . | . . . . . . . . Fabricators . | . . . . . . . . Repair Stations . | . . . . . . . . Recycling Units . | . . . . . . . . Scanalyzers . | . . . . . . . . Garrison Access . | . . . . . . . . Data Cores Recovered 1 | . . . . . 1 . . Used 1 | . . . . . 1 . . Hacking Detections 23 | . 3 1 6 1 9 . 3 Full Trace Events 3 | . . . . . 2 . 1 Feedback Events . | . . . . . . . . Feedback Blocked . | . . . . . . . . Robot Schematics Acquired . | . . . . . . . . Robots Built . | . . . . . . . . Authchips . | . . . . . . . . Time . | . . . . . . . . Total Robot Build Rating . | . . . . . . . . Part Schematics Acquired 8 | . . . 8 . . . . Parts Built 1 | . . . . . 1 . . Authchips . | . . . . . . . . Time 99 | . . . . . 99 . . Total Part Build Rating 2 | . . . . . 2 . . Parts Repaired . | . . . . . . . . Time . | . . . . . . . . Parts Recycled . | . . . . . . . . Recycled Matter . | . . . . . . . . Retrieved Matter . | . . . . . . . . Retrieved Components 10 | . . . . . 10 . . Parts Scanalyzed 9 | . . . 8 . 1 . . Part Schematics Acquired 8 | . . . 8 . . . . Parts Damaged 1 | . . . 1 . . . . Bothacking | -11 -10 -10 -9 -8 -7 -6 -6 ------------ Run | Yrd Mat Min Mat Mat Fac Fac Ext Used RIF Installer . | . . . . . . . . Robots Hacked 2 | . . . . 1 . . 1 Non-combat . | . . . . . . . . Combat 2 | . . . . 1 . . 1 Robot Hacks Applied 2 | . . . . 1 . . 1 parse_system 2 | . . . . 1 . . 1 Relay Couplers Released . | . . . . . . . . Fabnet Peak Effective % . | . . . . . . . . Robots Rewired . | . . . . . . . . Allies Hacked . | . . . . . . . . Hacks Repelled . | . . . . . . . . Allies | -11 -10 -10 -9 -8 -7 -6 -6 -------- Run | Yrd Mat Min Mat Mat Fac Fac Ext Total Allies 7 | . . 2 . . 3 . 2 Largest Group 3 | . . 2 . . 3 . 2 Highest-Rated Group 93 | . . 45 . . 93 . 62 Highest-Rated Ally 31 | . . 31 . . 31 . 31 Total Orders . | . . . . . . . . Ally Attacks 79 | . . 7 . 10 47 . 15 Total Damage 989 | . . 127 . . 674 . 188 Kills 6 | . . 1 . . 4 . 1 Allies Corrupted . | . . . . . . . . Allies Melted 1 | . . . . . 1 . . Intel | -11 -10 -10 -9 -8 -7 -6 -6 ------- Run | Yrd Mat Min Mat Mat Fac Fac Ext Robot Analysis Total . | . . . . . . . . Derelict Logs Recovered 2 | . . 2 . . . . . Drone Launches 12 | . . . . 12 . . . Drone Recoveries . | . . . . . . . . Exploration | -11 -10 -10 -9 -8 -7 -6 -6 ------------- Run | Yrd Mat Min Mat Mat Fac Fac Ext Turns Passed 5173 | 96 640 561 1423 1088 784 217 364 Spaces Moved 3664 | 52 352 332 401 448 1198 309 572 Core 198 | 4 . . . . . . 194 Treads 1581 | 48 352 332 401 448 . . . Legs . | . . . . . . . . Wheels . | . . . . . . . . Hover 1797 | . . . . . 1198 309 290 Flight 88 | . . . . . . . 88 Fastest Speed 35 | 50 160 160 160 160 45 45 35 Average Speed 95 | 151 160 160 160 160 46 45 48 Slowest Speed 400 | 160 160 160 240 160 48 45 400 Overloaded Moves . | . . . . . . . . Propulsion Burnouts . | . . . . . . . . Robots Hopped . | . . . . . . . . Cave-ins Triggered . | . . . . . . . . Exploration Rate (%) 35 | 4 58 66 34 26 31 8 59 Regions Visited 7 Branch Regions 2 Pre-discovered Areas 3 | . . 3 . . . . . Known Exits Taken 5 | . 1 . 1 1 1 1 . Unknown Exits Taken 2 | 1 . 1 . . . . . Scrap Searched 1 | . . 1 . . . . . Spaces Dug . | . . . . . . . . Terrain Destroyed 119 | . . . 35 56 15 . 13 Melee . | . . . . . . . . Projectile . | . . . . . . . . AOE 119 | . . . 35 56 15 . 13 Terrain Rammed . | . . . . . . . . Walls Destroyed . | . . . . . . . . Machines Disabled . | . . . . . . . . Actions | -11 -10 -10 -9 -8 -7 -6 -6 --------- Run | Yrd Mat Min Mat Mat Fac Fac Ext Total 5148 | 67 391 359 1124 787 1402 377 641 Wait 1136 | 6 5 20 651 279 92 63 20 Move 3657 | 51 351 331 400 447 1197 308 572 Hop . | . . . . . . . . Pick Up 58 | 5 8 2 12 13 15 . 3 Fast Attach 18 | 5 2 . 1 2 1 . 7 Attach 26 | . 2 . 8 . 9 1 6 Detach 10 | . . . 2 . 5 . 3 Swap 33 | . 6 1 7 3 14 1 1 Drop 43 | . . 3 10 9 17 . 4 Fire 115 | . 17 2 33 32 16 4 11 Melee 5 | . . . . 2 1 . 2 Ram 1 | . . . . . . . 1 Kick . | . . . . . . . . Crush . | . . . . . . . . Escape Stasis 46 | . . . . . 35 . 11 Rewire . | . . . . . . . . Trap . | . . . . . . . . Miscellaneous . | . . . . . . . . Route ------- -11/Scrapyard -10/Materials (discovered 4 exits: *Mat x2 / *Min x2) -10/Mines (discovered 2 exits: *Mat x2) -9/Materials (discovered 3 exits: *Mat x3) -8/Materials -7/Factory (discovered 4 exits: *Fac x4) -6/Factory -6/Extension History --------- Turn | Location | Event 21 | -11/Scrapyard | Discovered new exit (range 15) 97 | -11/Scrapyard | Entered Materials 236 | -10/Materials | Identified exit to Mines 310 | -10/Materials | Discovered new exit (range 12) 313 | -10/Materials | Build established: Mutant 636 | -10/Materials | Discovered new exit (range 15) 737 | -10/Materials | Entered Mines 861 | -10/Mines | Learned location of Storage (-7) 966 | -10/Mines | Discovered new exit (range 6) 1236 | -10/Mines | Discovered new exit (range 6) 1257 | -10/Mines | Found the Drone Emporium 1263 | -10/Mines | Found Prototype Device 1298 | -10/Mines | Entered Materials 1298 | -9/Materials | Evolved 2 slots: Utility x2 1435 | -9/Materials | Identified Bomb Drone Bay 1635 | -9/Materials | Identified exit to Materials 2604 | -9/Materials | Destroyed 7 combat bots 2614 | -9/Materials | Lost 6 parts (1p2n2u1w) 2721 | -9/Materials | Entered another Materials area 2721 | -8/Materials | Evolved 2 slots: Utility x2 3576 | -8/Materials | Destroyed 9 combat bots 3602 | -8/Materials | Discovered new exit (range 10) 3621 | -8/Materials | Identified exit to Factory 3744 | -8/Materials | Lost 10 allies 3809 | -8/Materials | Entered Factory 3809 | -7/Factory | Accompanied by 2 allies 3809 | -7/Factory | Evolved 2 slots: Propulsion x2 3978 | -7/Factory | Allied Derelicts emerged from ambush trap array 4071 | -7/Factory | Fabricated Imp. EM Shotgun? 4495 | -7/Factory | Central database locked down 4495 | -7/Factory | Identified exit to Factory 4566 | -7/Factory | Build established: Hacker-Mutant 4593 | -7/Factory | Entered another Factory area 4593 | -6/Factory | Evolved 2 slots: Utility x2 4808 | -6/Factory | Discovered new exit (range 6) 4809 | -6/Factory | Identified exit to Extension 4810 | -6/Factory | Entered Extension 4881 | -6/Extension | Spotted B-75 Beast 4957 | -6/Extension | Lost 3 parts (2p1w) 5038 | -6/Extension | Core integrity fell below 50% 5062 | -6/Extension | Lost 13 parts (1p5n4u3w) 5066 | -6/Extension | Rescued a captive Derelict 5068 | -6/Extension | Rescued a captive Derelict 5162 | -6/Extension | Spotted B-75 Beast 5170 | -6/Extension | Core integrity fell below 20% 5174 | -6/Extension | Destroyed by B-75 Beast with Heavy Plasma Cannon Last Messages --------------- 05102_ O-16 Technician locks terminal. 05124_ Sneak attack on O-16 Technician. 05124_ Destroyed Hover Unit. 05124_ O-16 Technician destroyed. 05128_ Acquired Lgt. Ion Engine. 05130_ Identified Imp. Cesium-ion Thruster. 05131_ Acquired 10 matter. 05133_ Acquired Datajack. 05135_ Acquired Enh. Optical Array. 05163_ Machine disabled. 05165_ R-10 Processor destroyed. 05165_ Imp. Cesium-ion Thruster destroyed. 05165_ Dropped Adv. Sensor Array. 05165_ B-75 Beast suffers critical hit (Burn). 05166_ Lgt. Ion Engine destroyed. 05168_ Door Terminal disabled. 05169_ Imp. Signal Interpreter destroyed. 05169_ Critical hit (Blast). 05172_ U-05 Engineer builds a Wall. 05172_ R-10 Processor collects Com. Wheel. Map ----- +----------------------------------------------------+ | #?????????????????????????????????????? | | #### #?????????????????????????????????????? | | ???# #?????????????????????????????????????? | | ???# #?????????????????????????????????????? | | ???# #?????????????????????????????????????? | | ???# #?????????????????????????????????????? | | ???# #?????????????????????????????????????? | | ???# #????????? ???????????????????????????? | | ####+##+## #????????? ???????????????????????????? | | # # #????????? ???????????????????????????? | | # + #????????# #??????????????????????????? | | # # #????????# #??????????????????????????? | | # # #????????# #??????????????????????????? | | ########## #????????# #??????????????????????????? | | ?????????# #????????# #??????????????????????????? | | ?????????# #?######?# #??????????????????????????? | | ???????### ### ## ### ###????????????????????????? | | ???????# " " "" ""#????????????????????????? | | ???????# " Y Y " " #????????????????????????? | | ???????# #????????????????????????? | | ??????## #????????????????????????? | | ######## ! ######################???? | | u % R ???? | | * ??? | | !u ??? | | u k u g @u ??? | | % BB % BBg u k uA R ??? | | ######## BB BB ###################??????? | | ???????# g #????????????????????????? | | ???????# #????????????????????????? | | ???????# #????????????????????????? | | ???????# % #????????????????????????? | | ???????###### #"""#;#####????????????????????????? | | ????????????##????##?????????????????????????????? | | ?????????????????????????????????????????????????? | | | | | | | | | | | | | | | | | | | | | | | | | | | | | | | +----------------------------------------------------+ Best States ------------- Heat Dissipation 50 Energy Generation 19 Energy Capacity 400 Matter Stores 300 Matter Capacity 300 Sight Range 22 Robot Scan Range 16 Terrain Scan Density 10 Additional Mass Support 6 Armor Coverage 150 Evasion (%) 63 Recoil Reduction 2 Offensive Hacking 10 Defensive Hacking 10 Item Schematics ----------------- Imp. EM Shotgun | -9/Materials | Scanalyzed Imp. Datajack | -9/Materials | Scanalyzed Rocket Launcher | -9/Materials | Scanalyzed Imp. Utility Shielding | -9/Materials | Scanalyzed Imp. Targeting Computer | -9/Materials | Scanalyzed Imp. Medium Laser | -9/Materials | Scanalyzed Cooling System | -9/Materials | Scanalyzed Structural Scanner | -9/Materials | Scanalyzed Robot Schematics ------------------ None Fabricated ------------ Imp. EM Shotgun | x1 | -7/Factory Alien Tech Used ----------------- None Achievements -------------- Dynamic Key It's Just You Just What I Needed Safety First Challenges ------------ None Game ------ Seed FusionCentriumMapper Manual? 0 Play Time 02:05:18 Cumulative 14.0 hours Start 2025.01.11 @ 11:19:32 End 2025.01.11 @ 13:34:48 Sessions 1 Manual Loads 0 Difficulty Rogue Special Mode None Game No. 10 Rogue 10 Adventurer 0 Explorer 0 Win Type - Total 0 Types 0/0/0/0/0/0/0/0/0 Lore% 4 Gallery% 17 Achievement% 14 Wizard Run 0 Options --------- Layout 2 ASCII 0 Keyboard 0 Movement Mouse Keybinds 0 Fullscreen 1 Font 24/Smallcaps Map View 50x44 Zoom Use 0% Tactical HUD 1 Map Filters NONE Filters NONE Steam 1 RUN: 78343077-cbce-4af2-bdbf-a95eb3aea66c